[Event "Titled Tuesday Blitz November 16 2021"]
[White "Djordjevic, Vuk"]
[Black "Ghazarian, Kirk"]
[WhiteFideId "902098"]
[BlackFideId "30908604"]
[WhiteElo "2463"]
[BlackElo "2003"]
[Result "0-1"]
[Round "10"]
[TimeControl "180+1"]
[Date "2021.11.16"]
[WhiteClock "0:00:01"]
[BlackClock "0:00:14"]

1. d4 {[%clk 0:03:00]}  Nf6 {[%clk 0:02:56]} 2. Bg5 {[%clk 0:03:01]}  Ne4 {[%clk 0:02:54]} 3. Bf4 {[%clk 0:03:01]}  c5 {[%clk 0:02:53]} 4. f3 {[%clk 0:03:01]}  Nf6 {[%clk 0:02:46]} 5. dxc5 {[%clk 0:03:01]}  Na6 {[%clk 0:02:41]} 6. Nc3 {[%clk 0:03:00]}  Nxc5 {[%clk 0:02:41]} 7. e4 {[%clk 0:03:00]}  d6 {[%clk 0:02:38]} 8. Bc4 {[%clk 0:02:39]}  g6 {[%clk 0:02:25]} 9. Nge2 {[%clk 0:02:39]}  Bg7 {[%clk 0:02:24]} 10. e5 {[%clk 0:02:26]}  Nh5 {[%clk 0:02:21]} 11. exd6 {[%clk 0:02:26]}  Nxf4 {[%clk 0:02:18]} 12. Nxf4 {[%clk 0:02:26]}  O-O {[%clk 0:02:13]} 13. O-O {[%clk 0:02:17]}  exd6 {[%clk 0:02:07]} 14. Nfd5 {[%clk 0:02:12]}  Be6 {[%clk 0:02:04]} 15. Rb1 {[%clk 0:02:03]}  Rc8 {[%clk 0:02:03]} 16. Kh1 {[%clk 0:01:56]}  Qh4 {[%clk 0:02:02]} 17. Be2 {[%clk 0:01:37]}  a6 {[%clk 0:01:48]} 18. Qd2 {[%clk 0:01:32]}  b5 {[%clk 0:01:42]} 19. a3 {[%clk 0:01:30]}  Rfe8 {[%clk 0:01:39]} 20. g3 {[%clk 0:01:09]}  Qd8 {[%clk 0:01:30]} 21. Rfe1 {[%clk 0:01:08]}  Nd7 {[%clk 0:01:24]} 22. f4 {[%clk 0:01:04]}  Nb6 {[%clk 0:01:17]} 23. Bf3 {[%clk 0:00:58]}  Nc4 {[%clk 0:01:14]} 24. Qf2 {[%clk 0:00:28]}  Nxb2 {[%clk 0:00:50]} 25. Rxb2 {[%clk 0:00:28]}  Bxc3 {[%clk 0:00:49]} 26. Nxc3 {[%clk 0:00:27]}  Rxc3 {[%clk 0:00:50]} 27. Bg2 {[%clk 0:00:11]}  Rxa3 {[%clk 0:00:45]} 28. Qd4 {[%clk 0:00:11]}  Qc7 {[%clk 0:00:37]} 29. Rd1 {[%clk 0:00:09]}  Qc5 {[%clk 0:00:31]} 30. Qd2 {[%clk 0:00:05]}  Rd8 {[%clk 0:00:20]} 31. Re1 {[%clk 0:00:05]}  Qc3 {[%clk 0:00:19]} 32. Qc1 {[%clk 0:00:03]}  Ra4 {[%clk 0:00:18]} 33. Rb1 {[%clk 0:00:03]}  Rc4 {[%clk 0:00:18]} 34. Rb2 {[%clk 0:00:03]}  Rdc8 {[%clk 0:00:17]} 35. Re2 {[%clk 0:00:03]}  Qd4 {[%clk 0:00:17]} 36. Rb3 {[%clk 0:00:02]}  Qc5 {[%clk 0:00:15]} 37. Rd3 {[%clk 0:00:01]}  Rxc2 {[%clk 0:00:14]} 38. Rxc2 {[%clk 0:00:01]}  Qxc2 {[%clk 0:00:14]} 39. Qxc2 {[%clk 0:00:02]}  Rxc2 {[%clk 0:00:15]} 40. Bf3 {[%clk 0:00:03]}  d5 {[%clk 0:00:14]} 41. Ra3 {[%clk 0:00:02]}  Rc6 {[%clk 0:00:14]} 42. Kg1 {[%clk 0:00:02]}  b4 {[%clk 0:00:14]} 43. Ra4 {[%clk 0:00:02]}  Rb6 {[%clk 0:00:12]} 44. Kf2 {[%clk 0:00:02]}  b3 {[%clk 0:00:13]} 45. Be2 {[%clk 0:00:01]}  b2 {[%clk 0:00:13]} 46. Bd3 {[%clk 0:00:02]}  Bf5 {[%clk 0:00:13]} 47. Bxf5 {[%clk 0:00:01]}  gxf5 {[%clk 0:00:14]} 0-1


[Site "https://www.chess.com"]

[Event "Titled Tuesday Blitz November 16 2021"]
[White "FGHSMN"]
[Black "Bortnyk, Olexandr"]
[BlackFideId "14120828"]
[WhiteElo "2688"]
[BlackElo "2723"]
[Result "0-1"]
[Round "10"]
[TimeControl "180+1"]
[Date "2021.11.16"]
[WhiteClock "0:00:04"]
[BlackClock "0:00:06"]

1. e4 {[%clk 0:03:00]}  Nf6 {[%clk 0:02:59]} 2. e5 {[%clk 0:03:00]}  Nd5 {[%clk 0:03:00]} 3. d4 {[%clk 0:03:00]}  d6 {[%clk 0:03:00]} 4. Nf3 {[%clk 0:02:59]}  dxe5 {[%clk 0:03:00]} 5. Nxe5 {[%clk 0:03:00]}  c6 {[%clk 0:03:01]} 6. Be2 {[%clk 0:02:55]}  Bf5 {[%clk 0:03:01]} 7. O-O {[%clk 0:02:53]}  Nd7 {[%clk 0:03:01]} 8. Nf3 {[%clk 0:02:52]}  e6 {[%clk 0:03:01]} 9. a3 {[%clk 0:02:47]}  Bd6 {[%clk 0:03:01]} 10. c4 {[%clk 0:02:46]}  N5f6 {[%clk 0:03:01]} 11. Nc3 {[%clk 0:02:45]}  O-O {[%clk 0:03:02]} 12. Bg5 {[%clk 0:02:45]}  Qc7 {[%clk 0:02:54]} 13. Qd2 {[%clk 0:02:43]}  h6 {[%clk 0:02:50]} 14. Bh4 {[%clk 0:02:41]}  Rfe8 {[%clk 0:02:41]} 15. Bg3 {[%clk 0:02:37]}  Bxg3 {[%clk 0:02:40]} 16. hxg3 {[%clk 0:02:38]}  e5 {[%clk 0:02:40]} 17. d5 {[%clk 0:02:37]}  e4 {[%clk 0:02:33]} 18. Nd4 {[%clk 0:02:34]}  Bg6 {[%clk 0:02:28]} 19. Qe3 {[%clk 0:02:26]}  cxd5 {[%clk 0:02:17]} 20. cxd5 {[%clk 0:02:25]}  Qe5 {[%clk 0:02:09]} 21. Rfd1 {[%clk 0:02:17]}  Nb6 {[%clk 0:02:07]} 22. d6 {[%clk 0:01:47]}  Qxd6 {[%clk 0:02:02]} 23. Ndb5 {[%clk 0:01:46]}  Qe5 {[%clk 0:02:00]} 24. Nxa7 {[%clk 0:01:35]}  Nbd5 {[%clk 0:01:38]} 25. Nxd5 {[%clk 0:01:32]}  Nxd5 {[%clk 0:01:38]} 26. Qd4 {[%clk 0:01:19]}  e3 {[%clk 0:01:39]} 27. f4 {[%clk 0:00:53]}  Nxf4 {[%clk 0:01:37]} 28. gxf4 {[%clk 0:00:54]}  Qxd4 {[%clk 0:01:37]} 29. Rxd4 {[%clk 0:00:54]}  Rxa7 {[%clk 0:01:38]} 30. Rc1 {[%clk 0:00:51]}  Raa8 {[%clk 0:01:19]} 31. Bf3 {[%clk 0:00:47]}  Re7 {[%clk 0:01:16]} 32. Kf1 {[%clk 0:00:42]}  f6 {[%clk 0:01:06]} 33. Ke2 {[%clk 0:00:41]}  Be8 {[%clk 0:01:07]} 34. Bd5+ {[%clk 0:00:22]}  Kf8 {[%clk 0:01:04]} 35. Rc3 {[%clk 0:00:23]}  Bh5+ {[%clk 0:00:54]} 36. Bf3 {[%clk 0:00:19]}  Bxf3+ {[%clk 0:00:54]} 37. gxf3 {[%clk 0:00:20]}  Rae8 {[%clk 0:00:55]} 38. Rdd3 {[%clk 0:00:18]}  Kf7 {[%clk 0:00:55]} 39. b4 {[%clk 0:00:16]}  h5 {[%clk 0:00:54]} 40. a4 {[%clk 0:00:09]}  h4 {[%clk 0:00:52]} 41. Rxe3 {[%clk 0:00:09]}  Rxe3+ {[%clk 0:00:37]} 42. Rxe3 {[%clk 0:00:10]}  Rc8 {[%clk 0:00:33]} 43. Re4 {[%clk 0:00:05]}  Rc2+ {[%clk 0:00:28]} 44. Kf1 {[%clk 0:00:05]}  Ra2 {[%clk 0:00:28]} 45. a5 {[%clk 0:00:05]}  Rb2 {[%clk 0:00:29]} 46. Rd4 {[%clk 0:00:05]}  Kg6 {[%clk 0:00:29]} 47. Kg1 {[%clk 0:00:03]}  Kf5 {[%clk 0:00:29]} 48. Rd7 {[%clk 0:00:02]}  Kxf4 {[%clk 0:00:24]} 49. Rxg7 {[%clk 0:00:02]}  Kxf3 {[%clk 0:00:22]} 50. Rxb7 {[%clk 0:00:02]}  Kg3 {[%clk 0:00:19]} 51. Rg7+ {[%clk 0:00:02]}  Kh3 {[%clk 0:00:20]} 52. Rb7 {[%clk 0:00:01]}  Ra2 {[%clk 0:00:15]} 53. Ra7 {[%clk 0:00:01]}  Kg3 {[%clk 0:00:14]} 54. Rg7+ {[%clk 0:00:01]}  Kf3 {[%clk 0:00:14]} 55. Ra7 {[%clk 0:00:02]}  f5 {[%clk 0:00:12]} 56. a6 {[%clk 0:00:02]}  f4 {[%clk 0:00:13]} 57. b5 {[%clk 0:00:03]}  h3 {[%clk 0:00:13]} 58. b6 {[%clk 0:00:02]}  Ra5 {[%clk 0:00:04]} 59. b7 {[%clk 0:00:02]}  Kg3 {[%clk 0:00:03]} 60. Kf1 {[%clk 0:00:03]}  h2 {[%clk 0:00:03]} 61. b8=Q {[%clk 0:00:02]}  h1=Q+ {[%clk 0:00:03]} 62. Ke2 {[%clk 0:00:03]}  Qe4+ {[%clk 0:00:03]} 63. Kd2 {[%clk 0:00:04]}  Ra2+ {[%clk 0:00:04]} 64. Kc3 {[%clk 0:00:03]}  Rc2+ {[%clk 0:00:04]} 65. Kb3 {[%clk 0:00:03]}  Qc4+ {[%clk 0:00:05]} 66. Ka3 {[%clk 0:00:04]}  Ra2# {[%clk 0:00:06]} 0-1


[Site "https://www.chess.com"]

[Event "Titled Tuesday Blitz November 16 2021"]
[White "Gabrielian, Artur"]
[Black "Nesterov, Arseniy"]
[WhiteFideId "4131002"]
[BlackFideId "24198455"]
[WhiteElo "2440"]
[BlackElo "2489"]
[Result "0-1"]
[Round "10"]
[TimeControl "180+1"]
[Date "2021.11.16"]
[WhiteClock "0:00:02"]
[BlackClock "0:00:04"]

1. e4 {[%clk 0:03:00]}  e5 {[%clk 0:03:00]} 2. Nf3 {[%clk 0:03:01]}  Nc6 {[%clk 0:02:59]} 3. Bb5 {[%clk 0:03:01]}  a6 {[%clk 0:02:59]} 4. Ba4 {[%clk 0:03:01]}  b5 {[%clk 0:03:00]} 5. Bb3 {[%clk 0:03:01]}  Na5 {[%clk 0:03:00]} 6. d4 {[%clk 0:02:59]}  exd4 {[%clk 0:03:00]} 7. c3 {[%clk 0:02:46]}  Nxb3 {[%clk 0:02:54]} 8. axb3 {[%clk 0:02:45]}  dxc3 {[%clk 0:02:53]} 9. Nxc3 {[%clk 0:02:45]}  Bb7 {[%clk 0:02:54]} 10. O-O {[%clk 0:02:45]}  d6 {[%clk 0:02:48]} 11. Re1 {[%clk 0:02:43]}  Be7 {[%clk 0:02:47]} 12. Nd5 {[%clk 0:02:39]}  Bf6 {[%clk 0:02:47]} 13. Nxf6+ {[%clk 0:02:34]}  Nxf6 {[%clk 0:02:20]} 14. e5 {[%clk 0:02:33]}  Ne4 {[%clk 0:02:19]} 15. exd6 {[%clk 0:02:22]}  O-O {[%clk 0:02:18]} 16. dxc7 {[%clk 0:01:43]}  Qxc7 {[%clk 0:02:19]} 17. Be3 {[%clk 0:01:43]}  Rad8 {[%clk 0:02:13]} 18. Qc1 {[%clk 0:01:43]}  Qd6 {[%clk 0:01:53]} 19. Rd1 {[%clk 0:01:36]}  Qe7 {[%clk 0:01:33]} 20. Qc2 {[%clk 0:01:32]}  h6 {[%clk 0:01:20]} 21. Rxd8 {[%clk 0:01:24]}  Rxd8 {[%clk 0:01:21]} 22. Rd1 {[%clk 0:01:24]}  Rc8 {[%clk 0:01:18]} 23. Qe2 {[%clk 0:01:16]}  Nf6 {[%clk 0:01:05]} 24. Nd4 {[%clk 0:01:10]}  Nd5 {[%clk 0:00:39]} 25. Nf5 {[%clk 0:00:30]}  Qf6 {[%clk 0:00:35]} 26. Qg4 {[%clk 0:00:21]}  Nxe3 {[%clk 0:00:30]} 27. Nxe3 {[%clk 0:00:20]}  Qxb2 {[%clk 0:00:21]} 28. Qd7 {[%clk 0:00:20]}  Qc3 {[%clk 0:00:18]} 29. h4 {[%clk 0:00:21]}  Qc6 {[%clk 0:00:16]} 30. Qe7 {[%clk 0:00:19]}  Re8 {[%clk 0:00:13]} 31. Rd8 {[%clk 0:00:19]}  Rxd8 {[%clk 0:00:12]} 32. Qxd8+ {[%clk 0:00:20]}  Kh7 {[%clk 0:00:12]} 33. Qe7 {[%clk 0:00:20]}  Kg8 {[%clk 0:00:10]} 34. Qd8+ {[%clk 0:00:19]}  Kh7 {[%clk 0:00:10]} 35. Qe7 {[%clk 0:00:20]}  f6 {[%clk 0:00:09]} 36. h5 {[%clk 0:00:19]}  Qe4 {[%clk 0:00:08]} 37. Qf7 {[%clk 0:00:17]}  Bc6 {[%clk 0:00:07]} 38. Qc7 {[%clk 0:00:16]}  b4 {[%clk 0:00:05]} 39. Qb6 {[%clk 0:00:15]}  f5 {[%clk 0:00:04]} 40. f3 {[%clk 0:00:14]}  Qe6 {[%clk 0:00:04]} 41. Qd4 {[%clk 0:00:13]}  a5 {[%clk 0:00:04]} 42. Kf2 {[%clk 0:00:13]}  Be8 {[%clk 0:00:04]} 43. g4 {[%clk 0:00:11]}  fxg4 {[%clk 0:00:05]} 44. fxg4 {[%clk 0:00:12]}  Qf7+ {[%clk 0:00:04]} 45. Kg3 {[%clk 0:00:11]}  Kh8 {[%clk 0:00:05]} 46. Qe5 {[%clk 0:00:11]}  Bd7 {[%clk 0:00:04]} 47. Nd5 {[%clk 0:00:11]}  Qe6 {[%clk 0:00:04]} 48. Qb8+ {[%clk 0:00:11]}  Kh7 {[%clk 0:00:04]} 49. Nf4 {[%clk 0:00:02]}  Qxg4+ {[%clk 0:00:04]} 50. Kf2 {[%clk 0:00:02]}  Qf5 {[%clk 0:00:04]} 51. Ke3 {[%clk 0:00:02]}  a4 {[%clk 0:00:04]} 52. bxa4 {[%clk 0:00:03]}  Qc5+ {[%clk 0:00:04]} 53. Kf3 {[%clk 0:00:01]}  Bc6+ {[%clk 0:00:04]} 54. Kg3 {[%clk 0:00:01]}  Qg5+ {[%clk 0:00:04]} 55. Kf2 {[%clk 0:00:01]}  b3 {[%clk 0:00:04]} 56. Qb4 {[%clk 0:00:01]}  b2 {[%clk 0:00:04]} 57. Qxb2 {[%clk 0:00:01]}  Qxf4+ {[%clk 0:00:04]} 58. Ke1 {[%clk 0:00:02]}  Qe3+ {[%clk 0:00:04]} 59. Kd1 {[%clk 0:00:02]}  Bxa4+ {[%clk 0:00:04]} 0-1


[Site "https://www.chess.com"]

[Event "Titled Tuesday Blitz November 16 2021"]
[White "Golubev, Mikhail"]
[Black "Yeletsky, Ivan"]
[WhiteFideId "14100983"]
[BlackFideId "24180327"]
[WhiteElo "2374"]
[BlackElo "2352"]
[Result "1/2-1/2"]
[Round "10"]
[TimeControl "180+1"]
[Date "2021.11.16"]
[WhiteClock "0:00:25"]
[BlackClock "0:00:40"]

1. e4 {[%clk 0:03:00]}  c5 {[%clk 0:02:59]} 2. Nf3 {[%clk 0:03:00]}  Nc6 {[%clk 0:02:59]} 3. Nc3 {[%clk 0:03:01]}  Nf6 {[%clk 0:02:57]} 4. d4 {[%clk 0:02:58]}  cxd4 {[%clk 0:02:58]} 5. Nxd4 {[%clk 0:02:59]}  e6 {[%clk 0:02:58]} 6. Ndb5 {[%clk 0:02:56]}  d6 {[%clk 0:02:59]} 7. Bf4 {[%clk 0:02:55]}  e5 {[%clk 0:02:59]} 8. Bg5 {[%clk 0:02:55]}  a6 {[%clk 0:03:00]} 9. Na3 {[%clk 0:02:55]}  b5 {[%clk 0:03:00]} 10. Bxf6 {[%clk 0:02:53]}  gxf6 {[%clk 0:03:00]} 11. Nd5 {[%clk 0:02:53]}  Bg7 {[%clk 0:03:00]} 12. c3 {[%clk 0:02:53]}  f5 {[%clk 0:02:54]} 13. exf5 {[%clk 0:02:53]}  Bxf5 {[%clk 0:02:54]} 14. Nc2 {[%clk 0:02:53]}  O-O {[%clk 0:02:53]} 15. Nce3 {[%clk 0:02:53]}  Be6 {[%clk 0:02:38]} 16. Bd3 {[%clk 0:02:51]}  f5 {[%clk 0:02:30]} 17. O-O {[%clk 0:02:51]}  Ra7 {[%clk 0:02:18]} 18. a4 {[%clk 0:02:51]}  bxa4 {[%clk 0:02:15]} 19. Qxa4 {[%clk 0:02:31]}  Nb8 {[%clk 0:01:55]} 20. Bc4 {[%clk 0:01:35]}  Kh8 {[%clk 0:01:54]} 21. f4 {[%clk 0:01:19]}  Raf7 {[%clk 0:01:52]} 22. Qa5 {[%clk 0:01:10]}  Qh4 {[%clk 0:01:44]} 23. g3 {[%clk 0:00:55]}  Qd8 {[%clk 0:01:24]} 24. Qxd8 {[%clk 0:00:51]}  Rxd8 {[%clk 0:01:24]} 25. Rad1 {[%clk 0:00:47]}  Bh6 {[%clk 0:01:13]} 26. Nb6 {[%clk 0:00:38]}  Bxc4 {[%clk 0:01:07]} 27. Nbxc4 {[%clk 0:00:33]}  exf4 {[%clk 0:01:08]} 28. Nxd6 {[%clk 0:00:27]}  Rxd6 {[%clk 0:00:48]} 29. Rxd6 {[%clk 0:00:28]}  Bf8 {[%clk 0:00:48]} 30. Rd8 {[%clk 0:00:28]}  Nc6 {[%clk 0:00:47]} 31. Rxf8+ {[%clk 0:00:24]}  Rxf8 {[%clk 0:00:47]} 32. Rxf4 {[%clk 0:00:24]}  Ne7 {[%clk 0:00:43]} 33. Ra4 {[%clk 0:00:24]}  Rb8 {[%clk 0:00:41]} 34. Kf2 {[%clk 0:00:24]}  Rxb2+ {[%clk 0:00:39]} 35. Kf3 {[%clk 0:00:25]}  Rxh2 {[%clk 0:00:39]} 36. Rxa6 {[%clk 0:00:24]}  Kg7 {[%clk 0:00:40]} 37. Ra7 {[%clk 0:00:24]}  Kf6 {[%clk 0:00:40]} 38. c4 {[%clk 0:00:24]}  Rh1 {[%clk 0:00:38]} 39. Ra6+ {[%clk 0:00:24]}  Kf7 {[%clk 0:00:38]} 40. Ra7 {[%clk 0:00:25]}  Kf6 {[%clk 0:00:39]} 41. Ra6+ {[%clk 0:00:25]}  Kf7 {[%clk 0:00:39]} 42. Ra7 {[%clk 0:00:25]}  Kf6 {[%clk 0:00:40]} 1/2-1/2


[Site "https://www.chess.com"]

[Event "Titled Tuesday Blitz November 16 2021"]
[White "Kamsky, Gata"]
[Black "Papasimakopoulos, Alexandros"]
[WhiteFideId "2000024"]
[BlackFideId "4244125"]
[WhiteElo "2645"]
[BlackElo "2394"]
[Result "1/2-1/2"]
[Round "10"]
[TimeControl "180+1"]
[Date "2021.11.16"]
[WhiteClock "0:00:23"]
[BlackClock "0:00:09"]

1. e4 {[%clk 0:03:00]}  e6 {[%clk 0:02:58]} 2. d4 {[%clk 0:02:58]}  d5 {[%clk 0:02:59]} 3. exd5 {[%clk 0:02:59]}  exd5 {[%clk 0:02:59]} 4. Nf3 {[%clk 0:02:59]}  Bg4 {[%clk 0:02:59]} 5. h3 {[%clk 0:02:53]}  Bh5 {[%clk 0:02:59]} 6. Qe2+ {[%clk 0:02:44]}  Qe7 {[%clk 0:03:00]} 7. Qxe7+ {[%clk 0:02:38]}  Bxe7 {[%clk 0:02:58]} 8. Ne5 {[%clk 0:02:34]}  f6 {[%clk 0:02:46]} 9. Nd3 {[%clk 0:02:33]}  Nc6 {[%clk 0:02:46]} 10. c3 {[%clk 0:02:25]}  Bd6 {[%clk 0:02:44]} 11. Bf4 {[%clk 0:02:24]}  Kd7 {[%clk 0:02:35]} 12. Bxd6 {[%clk 0:02:11]}  Kxd6 {[%clk 0:02:36]} 13. Na3 {[%clk 0:02:10]}  a6 {[%clk 0:02:33]} 14. Nc5 {[%clk 0:02:06]}  Rb8 {[%clk 0:02:29]} 15. Kd2 {[%clk 0:02:05]}  Bf7 {[%clk 0:02:27]} 16. Re1 {[%clk 0:01:58]}  Na5 {[%clk 0:02:20]} 17. Nc2 {[%clk 0:01:35]}  Nc4+ {[%clk 0:02:18]} 18. Kc1 {[%clk 0:01:28]}  b6 {[%clk 0:02:02]} 19. Nxa6 {[%clk 0:01:20]}  Ra8 {[%clk 0:02:02]} 20. Nab4 {[%clk 0:01:14]}  c5 {[%clk 0:02:02]} 21. dxc5+ {[%clk 0:01:14]}  bxc5 {[%clk 0:02:03]} 22. Bxc4 {[%clk 0:01:14]}  dxc4 {[%clk 0:01:54]} 23. Rd1+ {[%clk 0:01:14]}  Kc7 {[%clk 0:01:51]} 24. Nd5+ {[%clk 0:01:14]}  Kc6 {[%clk 0:01:48]} 25. Nde3 {[%clk 0:01:09]}  Rxa2 {[%clk 0:01:46]} 26. Na3 {[%clk 0:01:08]}  Ra1+ {[%clk 0:01:41]} 27. Kd2 {[%clk 0:01:08]}  Ra2 {[%clk 0:01:36]} 28. Nexc4 {[%clk 0:01:06]}  Ne7 {[%clk 0:01:29]} 29. Ra1 {[%clk 0:00:58]}  Rd8+ {[%clk 0:01:05]} 30. Ke2 {[%clk 0:00:58]}  Bxc4+ {[%clk 0:00:05]} 31. Nxc4 {[%clk 0:00:57]}  Rda8 {[%clk 0:00:06]} 32. Rxa2 {[%clk 0:00:57]}  Rxa2 {[%clk 0:00:07]} 33. Kd3 {[%clk 0:00:54]}  Nd5 {[%clk 0:00:07]} 34. g3 {[%clk 0:00:54]}  Nb6 {[%clk 0:00:07]} 35. Nxb6 {[%clk 0:00:52]}  Kxb6 {[%clk 0:00:08]} 36. Kc2 {[%clk 0:00:52]}  c4 {[%clk 0:00:09]} 37. Re1 {[%clk 0:00:52]}  Ra7 {[%clk 0:00:09]} 38. h4 {[%clk 0:00:47]}  Kc5 {[%clk 0:00:10]} 39. h5 {[%clk 0:00:47]}  g6 {[%clk 0:00:10]} 40. h6 {[%clk 0:00:47]}  Kd5 {[%clk 0:00:10]} 41. Re8 {[%clk 0:00:46]}  f5 {[%clk 0:00:08]} 42. Rg8 {[%clk 0:00:46]}  Re7 {[%clk 0:00:08]} 43. Kd2 {[%clk 0:00:44]}  Rb7 {[%clk 0:00:09]} 44. Rg7 {[%clk 0:00:42]}  Rxb2+ {[%clk 0:00:09]} 45. Ke1 {[%clk 0:00:42]}  Rb1+ {[%clk 0:00:09]} 46. Ke2 {[%clk 0:00:42]}  Rb2+ {[%clk 0:00:10]} 47. Kf3 {[%clk 0:00:38]}  Rc2 {[%clk 0:00:10]} 48. Rxh7 {[%clk 0:00:38]}  Rxc3+ {[%clk 0:00:11]} 49. Kg2 {[%clk 0:00:39]}  Ra3 {[%clk 0:00:10]} 50. Rg7 {[%clk 0:00:36]}  Ra8 {[%clk 0:00:11]} 51. h7 {[%clk 0:00:32]}  Rh8 {[%clk 0:00:10]} 52. Kf3 {[%clk 0:00:32]}  c3 {[%clk 0:00:11]} 53. Ke2 {[%clk 0:00:32]}  Kd4 {[%clk 0:00:10]} 54. Kd1 {[%clk 0:00:31]}  Ke4 {[%clk 0:00:10]} 55. Rc7 {[%clk 0:00:28]}  Kf3 {[%clk 0:00:10]} 56. Ke1 {[%clk 0:00:28]}  c2 {[%clk 0:00:10]} 57. Kf1 {[%clk 0:00:28]}  Rxh7 {[%clk 0:00:10]} 58. Rc3+ {[%clk 0:00:28]}  Kg4 {[%clk 0:00:10]} 59. Rxc2 {[%clk 0:00:28]}  g5 {[%clk 0:00:11]} 60. Kg2 {[%clk 0:00:27]}  Rd7 {[%clk 0:00:10]} 61. f3+ {[%clk 0:00:23]}  Kh5 {[%clk 0:00:11]} 62. Kh3 {[%clk 0:00:21]}  g4+ {[%clk 0:00:10]} 63. fxg4+ {[%clk 0:00:21]}  fxg4+ {[%clk 0:00:11]} 64. Kg2 {[%clk 0:00:21]}  Rd5 {[%clk 0:00:12]} 65. Rc8 {[%clk 0:00:20]}  Kg5 {[%clk 0:00:12]} 66. Rg8+ {[%clk 0:00:19]}  Kf5 {[%clk 0:00:13]} 67. Rf8+ {[%clk 0:00:20]}  Kg5 {[%clk 0:00:13]} 68. Rf4 {[%clk 0:00:19]}  Rd2+ {[%clk 0:00:13]} 69. Rf2 {[%clk 0:00:19]}  Rd3 {[%clk 0:00:11]} 70. Rc2 {[%clk 0:00:19]}  Rd5 {[%clk 0:00:11]} 71. Kf2 {[%clk 0:00:19]}  Rf5+ {[%clk 0:00:10]} 72. Kg2 {[%clk 0:00:19]}  Re5 {[%clk 0:00:10]} 73. Kf2 {[%clk 0:00:20]}  Kf5 {[%clk 0:00:10]} 74. Kg2 {[%clk 0:00:20]}  Rd5 {[%clk 0:00:10]} 75. Rf2+ {[%clk 0:00:20]}  Kg5 {[%clk 0:00:11]} 76. Rc2 {[%clk 0:00:21]}  Re5 {[%clk 0:00:10]} 77. Kf2 {[%clk 0:00:21]}  Kf5 {[%clk 0:00:10]} 78. Kg2 {[%clk 0:00:21]}  Rd5 {[%clk 0:00:10]} 79. Rf2+ {[%clk 0:00:21]}  Kg6 {[%clk 0:00:11]} 80. Rf4 {[%clk 0:00:21]}  Kg5 {[%clk 0:00:11]} 81. Rf2 {[%clk 0:00:21]}  Rd3 {[%clk 0:00:12]} 82. Re2 {[%clk 0:00:21]}  Kf5 {[%clk 0:00:12]} 83. Kf2 {[%clk 0:00:22]}  Rf3+ {[%clk 0:00:11]} 84. Kg2 {[%clk 0:00:22]}  Ra3 {[%clk 0:00:11]} 85. Kf2 {[%clk 0:00:22]}  Ra4 {[%clk 0:00:10]} 86. Kg2 {[%clk 0:00:23]}  Re4 {[%clk 0:00:11]} 87. Rf2+ {[%clk 0:00:23]}  Ke5 {[%clk 0:00:11]} 88. Rb2 {[%clk 0:00:23]}  Rd4 {[%clk 0:00:12]} 89. Kf2 {[%clk 0:00:23]}  Ke4 {[%clk 0:00:12]} 90. Re2+ {[%clk 0:00:23]}  Kd3 {[%clk 0:00:12]} 91. Re5 {[%clk 0:00:23]}  Re4 {[%clk 0:00:13]} 92. Rf5 {[%clk 0:00:23]}  Re2+ {[%clk 0:00:13]} 93. Kf1 {[%clk 0:00:22]}  Re3 {[%clk 0:00:13]} 94. Kf2 {[%clk 0:00:22]}  Re2+ {[%clk 0:00:13]} 95. Kf1 {[%clk 0:00:22]}  Re3 {[%clk 0:00:09]} 96. Rf4 {[%clk 0:00:22]}  Rxg3 {[%clk 0:00:09]} 97. Kf2 {[%clk 0:00:23]}  Rf3+ {[%clk 0:00:08]} 98. Rxf3+ {[%clk 0:00:23]}  gxf3 {[%clk 0:00:09]} 99. Kxf3 {[%clk 0:00:23]} 1/2-1/2


[Site "https://www.chess.com"]